bitfinex/quotes_SOLUSD_20241110
["timestamp","ask_amount","ask_price","bid_price","bid_amount"]
[1731252621496,15.50143893,208.44,208.39,16.7953]
[1731252621906,15.50143893,208.46,208.38,15.50143893]
[1731252622290,15.50143893,208.46,208.32,40.8025]
[1731252622291,15.50143893,208.46,208.39,15.50143893]
[1731252622490,15.50143893,208.47,208.4,15.50143893]
[1731252622890,15.50143893,208.46,208.39,15.50143893]
[1731252623298,15.50143893,208.47,208.4,15.50143893]
[1731252623481,15.50143893,208.46,208.39,15.50143893]
[1731252623690,30.85331477,208.51,208.38,15.50143893]
[1731252623691,15.50143893,208.45,208.38,15.50143893]
[1731252623884,15.50143893,208.45,208.35,43.776884]
[1731252623885,15.50143893,208.46,208.39,15.50143893]
[1731252624504,15.50143893,208.46,208.4,4.7984]
[1731252624800,15.50143893,208.46,208.4,16.7945]
[1731252625108,26.05731477,208.51,208.4,16.7945]
[1731252625109,15.50143893,208.49,208.42,15.50143893]
[1731252625905,15.50143893,208.49,208.42,4.798]
[1731252626110,15.50143893,208.5,208.44,15.50143893]
[1731252626291,15.50143893,208.51,208.44,15.50143893]
[1731252626501,15.50143893,208.46,208.38,23.776884]
[1731252626685,15.50143893,208.45,208.39,15.50143893]
[1731252627093,15.50143893,208.47,208.41,15.50143893]
[1731252627603,15.50143893,208.47,208.38,40.572984]
[1731252627798,15.50143893,208.47,208.4,15.50143893]
[1731252628702,15.50143893,208.47,208.4,20.29973893]
[1731252629811,15.50143893,208.48,208.42,15.50143893]
[1731252630010,15.50143893,208.5,208.43,15.50143893]
[1731252630417,15.50143893,208.48,208.41,39.27832293]
[1731252630616,15.50143893,208.48,208.4,16.7944]
[1731252630793,15.50143893,208.46,208.4,11.9961]
[1731252631110,15.50143893,208.44,208.38,15.50143893]
[1731252631415,15.50143893,208.45,208.36,16.7976]
[1731252631616,15.50143893,208.45,208.38,15.50143893]
[1731252631802,15.50143893,208.44,208.38,20.30033893]
[1731252631999,15.50143893,208.45,208.38,20.30033893]
[1731252632307,4.7967,208.48,208.38,4.7989]
[1731252632526,15.50143893,208.46,208.39,15.50143893]
[1731252632718,15.50143893,208.45,208.38,20.30033893]
[1731252633011,15.50143893,208.44,208.37,27.49923893]
[1731252633219,15.50143893,208.44,208.37,32.29833893]
[1731252633508,15.50143893,208.43,208.37,16.7969]
[1731252633923,15.50143893,208.43,208.32,24.0015]
[1731252633924,15.50143893,208.38,208.32,24.0015]
[1731252634224,15.50143893,208.38,208.31,34.02803893]
[1731252634397,15.50143893,208.36,208.31,6.5256]
[1731252635213,15.50143893,208.37,208.31,11.326]
[1731252635415,15.50143893,208.36,208.31,11.326]
[1731252635602,15.50143893,208.38,208.32,15.50143893]
[1731252635798,15.50143893,208.39,208.32,15.50143893]
[1731252636002,15.50143893,208.39,208.32,20.30153893]
[1731252636211,15.50143893,208.38,208.32,4.8001]
[1731252636589,15.50143893,208.39,208.32,32.30223893]
[1731252636998,15.50143893,208.39,208.32,16.8008]
[1731252637216,15.50143893,208.39,208.32,32.30223893]
[1731252637698,15.50143893,208.42,208.35,15.50143893]
[1731252638012,15.50143893,208.44,208.37,15.50143893]
[1731252638224,15.50143893,208.46,208.39,15.50143893]
[1731252638899,15.50143893,208.48,208.41,15.50143893]
[1731252639093,15.50143893,208.49,208.42,15.50143893]
[1731252639295,15.50143893,208.48,208.41,15.50143893]
[1731252639515,15.50143893,208.49,208.42,15.50143893]
[1731252639701,15.50143893,208.51,208.44,15.50143893]
[1731252639898,15.50143893,208.52,208.45,20.29873893]
[1731252640101,15.50143893,208.54,208.47,15.50143893]
[1731252640517,15.50143893,208.53,208.46,15.50143893]
[1731252640714,4.7946,208.57,208.45,16.7905]
[1731252640715,15.50143893,208.54,208.48,15.50143893]
[1731252640915,15.50143893,208.58,208.51,15.50143893]
[1731252641117,16.3228,208.66,208.46,43.776884]
[1731252641327,15.50143893,208.64,208.57,15.50143893]
[1731252641622,15.50143893,208.65,208.58,15.50143893]
[1731252641798,15.50143893,208.67,208.6,15.50143893]
[1731252642008,25.1925097,208.69,208.62,15.50143893]
[1731252642205,15.50143893,208.7,208.63,15.50143893]
[1731252642407,15.50143893,208.67,208.54,6.4625]
[1731252642623,15.50143893,208.67,208.6,15.50143893]
[1731252642914,26.06370619,208.75,208.62,23.776884]
[1731252643121,0.1,208.74,208.55,20.0]
[1731252643332,15.50143893,208.67,208.61,23.776884]
[1731252643504,15.50143893,208.69,208.62,15.50143893]
[1731252643703,15.50143893,208.69,208.63,23.776884]
[1731252643903,15.50143893,208.69,208.64,4.7929]
[1731252644208,15.50143893,208.68,208.64,4.7929]
[1731252644418,4.7907,208.74,208.64,4.7929]
[1731252644419,15.50143893,208.69,208.64,4.7929]
[1731252644730,26.06370619,208.75,208.64,4.2929]
[1731252644731,15.50143893,208.7,208.64,4.2929]
[1731252645223,15.50143893,208.69,208.64,4.2929]
[1731252645404,21.1134,208.75,208.64,4.2929]
[1731252645405,12.6988088,208.75,208.64,4.2929]
[1731252645604,15.50143893,208.7,208.64,4.2929]
[1731252646001,15.50143893,208.69,208.64,16.2752]
[1731252646211,15.50143893,208.72,208.65,39.27832293]
[1731252646925,15.50143893,208.7,208.65,23.776884]
[1731252647705,15.50143893,208.68,208.64,11.9823]
[1731252648022,15.50143893,208.66,208.64,11.9823]
[1731252648404,15.50143893,208.67,208.64,16.7752]
[1731252648605,15.50143893,208.69,208.64,16.7752]
[1731252650130,15.50143893,208.68,208.64,16.7752]
[1731252650509,15.50143893,208.67,208.64,16.7752]
[1731252650714,15.50143893,208.67,208.64,11.9823]
[1731252650914,15.50143893,208.68,208.64,11.9823]
[1731252651109,15.50143893,208.67,208.64,11.9823]
[1731252651424,15.50143893,208.65,208.64,11.9823]
[1731252651803,15.50143893,208.67,208.64,11.9823]
[1731252652208,15.50143893,208.69,208.64,11.9823]
[1731252652401,15.50143893,208.67,208.64,11.9823]
[1731252653208,4.7899,208.77,208.66,6.6585]
[1731252653419,9.55727378,208.78,208.66,6.6585]
[1731252653420,15.50143893,208.73,208.67,23.776884]
[1731252653604,15.50143893,208.74,208.68,15.50143893]
[1731252653800,15.50143893,208.74,208.67,23.776884]
[1731252653801,15.50143893,208.74,208.67,39.27832293]
[1731252654322,15.50143893,208.74,208.69,16.7711]
[1731252654511,15.50143893,208.77,208.7,15.50143893]
[1731252655345,15.50143893,208.78,208.71,39.27832293]
[1731252655512,15.50143893,208.76,208.71,23.776884]
[1731252656119,15.50143893,208.77,208.71,23.776884]
[1731252656322,15.738,208.85,208.71,23.776884]
[1731252656323,15.50143893,208.76,208.72,16.7688]
[1731252656631,15.50143893,208.73,208.72,16.7688]
[1731252657105,15.50143893,208.73,208.72,11.9777]
[1731252657521,4.7886,208.83,208.72,11.9777]
[1731252657522,15.50143893,208.77,208.72,16.7688]
[1731252657726,15.50143893,208.74,208.72,11.9777]
[1731252658115,15.50143893,208.73,208.72,11.9777]
[1731252658321,15.50143893,208.73,208.67,23.776884]
[1731252658523,15.50143893,208.73,208.67,40.549184]
[1731252658721,15.50143893,208.75,208.69,23.776884]
[1731252658926,15.50143893,208.76,208.69,39.27832293]
[1731252659231,15.50143893,208.75,208.68,39.27832293]
[1731252659815,15.50143893,208.72,208.68,23.776884]
[1731252660025,15.50143893,208.75,208.68,39.27832293]
[1731252660423,15.50143893,208.75,208.69,16.7711]
[1731252660631,15.50143893,208.76,208.69,32.27253893]
[1731252660931,15.50143893,208.75,208.7,23.776884]
[1731252661839,15.50143893,208.75,208.71,16.7696]
[1731252662009,0.1,208.84,208.72,23.776884]
[1731252662010,15.50143893,208.76,208.72,23.776884]
[1731252662523,23.91124994,208.97,208.71,16.7696]
[1731252662524,15.50143893,208.93,208.8,20.0]
[1731252662728,15.50143893,208.93,208.85,15.50143893]
[1731252663430,15.50143893,208.93,208.86,4.7878]
[1731252663638,15.50143893,208.93,208.87,23.776884]
[1731252663835,15.50143893,208.97,208.89,15.50143893]
[1731252664038,15.50143893,208.95,208.88,15.50143893]
[1731252664240,15.50143893,208.93,208.86,32.25893893]
[1731252664536,4.7849,208.99,208.91,45.62852293]
[1731252664537,15.50143893,208.99,208.91,45.62852293]
[1731252665024,16.17563493,209.0,208.93,15.50143893]
[1731252665229,0.674196,209.0,208.93,0.1]
[1731252665639,0.674196,209.0,208.95,23.776884]
[1731252665813,16.17563493,209.0,208.95,23.776884]
[1731252666010,0.674196,209.0,208.95,23.776884]
[1731252666215,16.17563493,209.0,208.95,23.776884]
[1731252666835,15.50143893,208.99,208.95,23.776884]
[1731252667025,0.674196,209.0,208.95,23.776884]
[1731252667226,0.674196,209.0,208.99,39.27832293]
[1731252667627,0.674196,209.0,208.99,44.06322293]
[1731252667867,0.674196,209.0,208.99,28.561784]
[1731252668031,0.674196,209.0,208.99,44.06322293]
[1731252669738,0.674196,209.0,208.99,28.561784]
[1731252670249,0.674196,209.0,208.97,28.562084]
[1731252670815,15.50143893,208.98,208.91,6.3502]
[1731252671016,15.50143893,208.99,208.92,15.50143893]
[1731252671221,15.50143893,208.99,208.91,11.1369]
[1731252671222,15.50143893,208.96,208.91,23.1037]
[1731252671427,15.50143893,208.95,208.91,23.1037]
[1731252671628,15.50143893,208.94,208.91,6.3502]
[1731252671946,15.50143893,208.96,208.91,6.3502]
[1731252672241,15.50143893,208.95,208.91,11.1368]
[1731252673237,15.50143893,208.94,208.92,23.776884]
[1731252673840,16.17563493,209.0,208.92,23.776884]
[1731252673841,15.50143893,208.93,208.92,23.776884]
[1731252674031,15.50143893,208.93,208.89,11.9676]
[1731252674350,15.50143893,208.93,208.89,16.7548]
[1731252675143,0.674196,209.0,208.9,15.50143893]
[1731252675389,15.50143893,208.93,208.89,16.7548]
[1731252675551,16.17563493,209.0,208.89,16.7548]
[1731252675552,0.674196,209.0,208.9,23.776884]
[1731252675841,15.50143893,208.97,208.9,23.876884]
[1731252676024,0.674196,209.0,208.92,23.876884]
[1731252676221,15.50143893,208.99,208.92,39.37832293]
[1731252676729,15.50143893,208.98,208.92,23.876884]
[1731252676940,15.50143893,208.93,208.92,23.776884]
[1731252677131,15.50143893,208.94,208.9,23.776884]
[1731252677452,15.50143893,208.94,208.9,28.563584]
[1731252677632,15.50143893,208.94,208.9,40.530984]
[1731252677943,15.50143893,208.95,208.9,35.744284]
[1731252678135,15.50143893,208.91,208.85,6.4502]
[1731252678323,15.50143893,208.9,208.86,4.7877]
[1731252678523,0.674196,209.0,208.87,0.1]
[1731252678724,0.674196,209.0,208.88,0.1]
[1731252678926,0.674196,209.0,208.86,16.7574]
[1731252678927,0.674196,209.0,208.87,0.1]
[1731252679132,5.458996,209.0,208.86,16.7574]
[1731252679433,5.458996,209.0,208.87,23.776884]
[1731252679747,15.50143893,208.96,208.89,39.37832293]
[1731252680428,15.50143893,208.97,208.9,15.50143893]
[1731252680648,15.50143893,208.97,208.91,23.776884]
[1731252681045,15.50143893,208.98,208.91,23.876884]
[1731252681242,15.50143893,208.96,208.91,23.776884]
[1731252681559,15.50143893,208.98,208.91,23.776884]
[1731252681725,15.50143893,208.98,208.92,0.1]
[1731252682055,15.50143893,208.99,208.92,15.60143893]
[1731252682239,15.50143893,208.98,208.92,0.1]
[1731252682544,15.50143893,208.95,208.91,23.776884]
[1731252682869,15.50143893,208.95,208.9,11.9672]
[1731252683227,15.50143893,208.91,208.9,11.9672]
[1731252684448,15.50143893,208.92,208.9,11.9672]
[1731252685529,15.50143893,208.97,208.9,23.776884]
[1731252685849,0.674196,209.0,208.9,23.776884]
[1731252686049,15.50143893,208.93,208.9,23.776884]
[1731252686342,0.674196,209.0,208.9,23.776884]
[1731252686542,15.50143893,208.95,208.89,23.776884]
[1731252686754,15.50143893,208.95,208.87,39.37832293]
[1731252688049,0.674196,209.0,208.94,23.776884]
[1731252688443,0.674196,209.0,208.94,39.27832293]
[1731252688750,15.50143893,208.99,208.93,23.776884]
[1731252688958,0.674196,209.0,208.94,23.776884]
[1731252689254,0.674196,209.0,208.94,39.27832293]
[1731252689461,0.674196,209.0,208.94,23.776884]
[1731252689756,0.674196,209.0,208.94,15.50143893]
[1731252689961,0.674196,209.0,208.95,23.776884]
[1731252690264,0.674196,209.0,208.97,23.776884]
[1731252690562,0.674196,209.0,208.96,16.7496]
[1731252690563,0.674196,209.0,208.99,23.776884]
[1731252690952,0.674196,209.0,208.97,23.776884]
[1731252691267,15.50143893,209.11,209.01,23.876884]
[1731252691567,15.50143893,209.08,209.03,23.776884]
[1731252691761,15.50143893,209.08,209.01,23.776884]
[1731252691940,15.50143893,209.08,209.03,23.776884]
[1731252692136,15.50143893,209.09,209.03,23.776884]
[1731252692341,15.50143893,209.1,209.05,23.776884]
[1731252692538,4.7808,209.17,209.05,23.776884]
[1731252692539,15.50143893,209.09,209.05,23.776884]
[1731252692742,4.7808,209.17,209.02,56.16723893]
[1731252692743,15.50143893,209.1,209.04,23.776884]
[1731252693058,4.8809,209.17,209.04,23.776884]
[1731252693362,15.50143893,209.07,209.04,23.776884]
[1731252693686,15.50143893,209.07,209.03,23.776884]
[1731252694675,15.50143893,209.07,209.05,23.776884]
[1731252695162,15.50143893,209.06,209.0,6.5309]
[1731252695396,15.50143893,209.1,209.0,6.5309]
[1731252695397,15.50143893,209.03,209.0,23.2771]
[1731252695562,15.50143893,209.04,209.0,23.2771]
[1731252696353,15.50143893,209.03,209.0,23.2771]
[1731252696574,15.50143893,209.03,209.01,23.776884]
[1731252697264,15.50143893,209.03,209.01,21.276884]
[1731252697462,15.50143893,209.04,209.01,21.276884]
[1731252698070,15.50143893,209.02,209.01,21.276884]
[1731252698249,15.50143893,209.03,209.01,21.276884]
[1731252698747,15.50143893,209.03,209.02,4.7842]
[1731252699161,15.50143893,209.05,209.02,4.7842]
[1731252699350,15.50143893,209.05,209.02,16.7447]
[1731252699562,15.50143893,209.07,209.03,23.776884]
[1731252699765,20.5705,209.14,209.03,23.776884]
[1731252699955,15.50143893,209.06,209.03,23.776884]
[1731252700473,15.50143893,209.08,209.04,16.7431]
[1731252700657,15.50143893,209.09,209.05,23.776884]
[1731252700858,15.50143893,209.08,209.05,23.776884]
[1731252701058,1.30686626,209.19,209.1,0.1]
[1731252701257,1.30686626,209.19,209.12,20.0]
[1731252701258,15.50143893,209.14,209.12,20.0]
[1731252701571,15.50143893,209.15,209.13,23.776884]
[1731252702082,15.50143893,209.14,209.13,23.776884]
[1731252702375,15.50143893,209.14,209.07,43.776884]
[1731252702679,15.50143893,209.14,209.09,43.776884]
[1731252702856,15.50143893,209.12,209.09,43.776884]
[1731252703188,15.50143893,209.14,209.09,43.776884]
[1731252704375,1.30686626,209.19,209.08,40.7541]
[1731252704376,15.50143893,209.11,209.08,16.7399]
[1731252704583,15.50143893,209.11,209.08,11.9571]
[1731252705579,15.50143893,209.12,209.08,11.9571]
[1731252705790,15.50143893,209.11,209.08,11.9571]
[1731252706282,15.50143893,209.12,209.08,11.9571]
[1731252706462,1.30686626,209.19,209.09,23.776884]
[1731252706463,15.50143893,209.11,209.09,23.776884]
[1731252706657,15.50143893,209.11,209.1,4.7824]
[1731252706864,15.50143893,209.11,209.1,28.559284]
[1731252707062,15.50143893,209.11,209.09,23.776884]
[1731252707255,15.50143893,209.1,209.09,23.776884]
[1731252708058,15.50143893,209.1,209.03,11.9596]
[1731252708261,15.50143893,209.04,208.99,4.7849]
[1731252708478,15.50143893,209.03,208.99,16.7471]
[1731252708664,15.50143893,209.05,208.99,16.7471]
[1731252709174,15.50143893,209.02,208.95,0.1]
[1731252709392,4.782,209.12,208.99,0.1]
[1731252709960,6.4395,209.17,208.99,0.1]
[1731252710170,4.7816,209.14,208.99,0.1]
[1731252710368,4.7816,209.14,209.01,15.60143893]
[1731252710369,15.50143893,209.08,209.01,15.60143893]
[1731252710581,15.50143893,209.09,209.02,29.944884]
[1731252710762,15.50143893,209.11,209.06,16.7415]
[1731252710964,4.7813,209.15,209.07,23.776884]
[1731252711982,4.8813,209.15,209.02,6.168]
[1731252712179,15.50143893,209.05,209.01,11.9608]
[1731252712689,15.50143893,209.05,208.98,15.50143893]
[1731252712862,15.50143893,209.07,209.0,27.46313893]
[1731252713062,15.50143893,209.06,209.0,11.9617]
[1731252713482,15.50143893,209.06,209.0,27.46313893]
[1731252713680,15.50143893,209.06,209.01,23.776884]
[1731252713966,15.50143893,209.07,209.01,23.776884]
[1731252714184,15.50143893,209.08,209.03,23.776884]
[1731252714382,29.55107513,209.3,209.03,23.776884]
[1731252714383,4.7795,209.23,209.09,0.1]
[1731252714570,15.50143893,209.17,209.1,23.776884]
[1731252714888,15.50143893,209.14,209.11,4.7821]
[1731252715087,15.50143893,209.14,209.12,23.776884]
[1731252715686,15.50143893,209.15,209.12,23.776884]
[1731252716074,1.30686626,209.19,209.12,40.513384]
[1731252716075,15.50143893,209.17,209.12,40.513384]
[1731252716484,15.50143893,209.18,209.12,40.613384]
[1731252717183,1.30686626,209.19,209.12,40.613384]
[1731252717184,15.50143893,209.17,209.12,40.513384]
[1731252717777,15.50143893,209.14,209.12,35.731684]
[1731252717981,15.50143893,209.13,209.07,20.0]
[1731252718175,15.50143893,209.13,209.08,4.7827]
[1731252718571,1.30686626,209.19,209.09,15.50143893]
[1731252718775,15.50143893,209.17,209.1,15.50143893]
[1731252719074,15.50143893,209.16,209.09,15.50143893]
[1731252719270,15.50143893,209.16,209.08,16.7398]
[1731252719271,6.08726626,209.19,209.08,11.9571]
[1731252719569,15.50143893,209.14,209.07,35.50143893]
[1731252719976,15.50143893,209.14,209.06,10.8095]
[1731252719977,15.50143893,209.09,209.06,4.7831]
[1731252720286,15.50143893,209.12,209.06,16.7413]
[1731252720592,15.50143893,209.11,209.06,11.9582]
[1731252721574,15.50143893,209.1,209.06,11.9582]
[1731252721775,15.50143893,209.11,209.06,11.9582]
[1731252721976,15.50143893,209.09,209.06,11.9582]
[1731252722989,15.50143893,209.07,209.01,11.961]
[1731252723173,15.50143893,209.1,208.97,10.8116]
[1731252723174,15.50143893,209.02,208.97,10.8116]
[1731252723599,15.50143893,209.05,208.98,15.50143893]
[1731252723786,4.7817,209.13,209.0,0.1]
[1731252723787,15.50143893,209.09,209.0,0.1]
[1731252723995,15.50143893,209.09,209.03,15.50143893]
[1731252724382,15.50143893,209.08,209.01,15.50143893]
[1731252724585,15.50143893,209.06,209.0,15.50143893]
[1731252724787,15.50143893,209.06,209.01,16.7455]
[1731252725793,4.7812,209.15,208.97,10.8116]
[1731252725794,15.50143893,209.02,208.97,10.8116]
[1731252725972,15.60143893,209.1,208.99,15.50143893]
[1731252725973,15.50143893,209.05,208.99,15.50143893]
[1731252726176,15.50143893,209.04,208.97,26.31303893]
[1731252726397,15.50143893,209.1,208.97,26.31303893]
[1731252726587,4.7812,209.15,209.0,15.50143893]
[1731252726897,4.7812,209.15,209.01,4.7844]
[1731252727697,15.50143893,209.07,209.01,36.7455]
[1731252727935,4.7796,209.23,209.06,15.60143893]
[1731252728104,15.50143893,209.14,209.09,20.0]
[1731252728403,15.50143893,209.13,209.07,20.0]
[1731252728586,15.50143893,209.12,209.07,20.0]
[1731252728786,15.50143893,209.13,209.07,20.0]
[1731252728985,15.50143893,209.14,209.07,35.50143893]
[1731252729284,15.50143893,209.15,209.08,15.50143893]
[1731252729490,15.50143893,209.15,209.09,20.0]
[1731252729692,15.50143893,209.15,209.08,15.50143893]
[1731252729693,15.50143893,209.17,209.11,16.7375]
[1731252730280,15.50143893,209.18,209.11,16.7375]
[1731252730696,15.50143893,209.18,209.11,32.23893893]
[1731252731199,15.50143893,209.17,209.11,16.7375]
[1731252731787,15.50143893,209.18,209.12,21.75613893]
[1731252732092,15.50143893,209.18,209.12,21.85613893]
[1731252732397,15.50143893,209.18,209.12,6.2547]
[1731252732612,15.50143893,209.17,209.12,6.2547]
[1731252732785,15.50143893,209.18,209.12,6.2547]
[1731252733111,15.50143893,209.18,209.13,16.7359]
[1731252734494,16.80830519,209.19,209.13,32.23733893]
[1731252734681,16.80830519,209.19,209.13,16.7359]
[1731252735087,15.50143893,209.18,209.13,16.7359]
[1731252735388,16.80830519,209.19,209.13,16.7359]
[1731252735900,15.50143893,209.17,209.13,16.7359]
[1731252736084,15.50143893,209.15,209.13,16.7359]
[1731252736696,1.30686626,209.19,209.13,16.7359]
[1731252737810,1.30686626,209.19,209.14,15.50143893]
[1731252738106,1.30686626,209.19,209.16,15.50143893]
[1731252738307,1.30686626,209.19,209.18,15.60143893]
[1731252738481,1.30686626,209.19,209.18,15.50143893]
[1731252738682,1.18146626,209.19,209.18,15.50143893]
[1731252739080,4.7768,209.35,209.21,6.2547]
[1731252739284,15.50143893,209.29,209.22,15.50143893]
[1731252739598,15.50143893,209.29,209.23,16.7279]
[1731252740208,15.50143893,209.26,209.23,16.7279]
[1731252740698,15.50143893,209.28,209.23,16.7279]
[1731252742402,15.50143893,209.25,209.21,11.0344]
[1731252742591,15.50143893,209.26,209.21,11.0344]
[1731252742793,15.50143893,209.25,209.21,11.0344]
[1731252742992,15.50143893,209.25,209.21,22.9841]
[1731252743590,15.50143893,209.24,209.21,22.9841]
[1731252743791,15.50143893,209.23,209.21,11.9497]
[1731252744093,15.50143893,209.24,209.21,11.9497]
[1731252744907,9.58802686,209.24,209.21,11.9497]
[1731252745199,14.36582686,209.3,209.21,11.9497]
[1731252745200,9.58802686,209.23,209.21,11.9497]
[1731252745987,9.58802686,209.25,209.18,4.7805]
[1731252746297,9.58802686,209.24,209.18,4.7805]
[1731252746500,9.58802686,209.23,209.18,4.7805]
[1731252747212,0.1,209.34,209.19,7.24811245]
[1731252747386,9.58802686,209.24,209.19,7.24811245]
[1731252747789,9.58802686,209.24,209.18,14.36852686]
[1731252747989,9.58802686,209.25,209.18,16.7319]
[1731252748187,9.58802686,209.27,209.19,29.58802686]
[1731252749517,9.58802686,209.25,209.2,16.7303]
[1731252749808,9.58802686,209.23,209.2,16.7303]
[1731252750526,9.58802686,209.21,209.16,18.2072]
[1731252750807,9.58802686,209.23,209.16,18.2072]
[1731252751013,9.58802686,209.23,209.16,27.79522686]
[1731252751394,9.58802686,209.23,209.16,32.57602686]
[1731252753214,9.58802686,209.25,209.16,32.57602686]
[1731252753613,14.36702686,209.25,209.16,22.988]
[1731252753826,9.58802686,209.3,209.16,22.988]
[1731252753827,9.58802686,209.23,209.16,22.988]
[1731252754114,9.58802686,209.25,209.17,9.58802686]
[1731252754518,9.58802686,209.27,209.19,9.58802686]
[1731252754899,9.58802686,209.27,209.18,9.58802686]
[1731252755101,9.58802686,209.25,209.18,9.58802686]
[1731252755716,9.58802686,209.25,209.19,16.7311]
[1731252757512,9.58802686,209.27,209.19,16.7311]
[1731252758705,9.58802686,209.25,209.19,16.7311]
[1731252759807,9.58802686,209.29,209.22,9.58802686]
[1731252760113,9.58802686,209.27,209.19,40.6328]
[1731252760617,9.58802686,209.27,209.2,9.58802686]
[1731252760813,9.58802686,209.27,209.21,4.7798]
[1731252761000,9.58802686,209.27,209.21,16.7295]
[1731252761501,9.58802686,209.29,209.21,16.7295]
[1731252761712,9.58802686,209.29,209.21,50.21692686]
[1731252763618,9.58802686,209.31,209.23,15.87272686]
[1731252763800,9.58802686,209.31,209.23,6.2847]
[1731252764324,9.58802686,209.29,209.23,6.2847]
[1731252765119,9.58802686,209.27,209.24,4.7792]
[1731252766008,9.58802686,209.27,209.24,4.2792]
[1731252766216,9.58802686,209.26,209.24,4.2792]
[1731252766520,9.58802686,209.27,209.21,35.8491]
[1731252767123,9.58802686,209.26,209.21,35.8491]
[1731252767623,9.58802686,209.24,209.21,11.9497]
[1731252767819,9.58802686,209.25,209.21,11.9497]
[1731252770198,0.1,209.32,209.21,11.9497]
[1731252770419,9.58802686,209.26,209.21,11.9497]
[1731252772907,0.1,209.34,209.21,11.9497]
[1731252773126,9.58802686,209.27,209.21,11.9497]
[1731252773417,9.58802686,209.23,209.21,11.9497]
[1731252773622,9.58802686,209.24,209.21,11.9497]
[1731252773923,9.58802686,209.26,209.18,9.58802686]
[1731252775122,9.58802686,209.26,209.19,16.7311]
[1731252775308,9.58802686,209.25,209.19,16.7311]
[1731252775720,9.58802686,209.27,209.2,9.58802686]
[1731252775925,9.58802686,209.28,209.2,9.58802686]
[1731252776226,9.58802686,209.27,209.2,9.58802686]
[1731252776729,9.58802686,209.27,209.19,40.6328]
[1731252776730,9.58802686,209.27,209.21,16.7295]
[1731252778109,9.58802686,209.25,209.21,16.7295]
[1731252778812,6.13626853,209.25,209.19,23.9017]
[1731252779716,6.13626853,209.25,209.17,16.7328]
[1731252780123,6.13626853,209.23,209.17,16.7328]
[1731252781414,16.5914,209.3,209.21,6.13626853]
[1731252781605,6.13626853,209.25,209.17,40.6368]
[1731252781925,6.13626853,209.25,209.18,6.13626853]
[1731252782331,6.13626853,209.25,209.17,46.77306853]
[1731252782631,6.13626853,209.27,209.19,6.13626853]
[1731252782919,6.13626853,209.27,209.2,16.7303]
[1731252783327,9.55370412,209.36,209.2,16.7303]
[1731252783328,10.71318727,209.51,209.29,6.0545]
[1731252783506,6.13626853,209.62,209.52,0.1]
[1731252783707,3.55415687,209.68,209.6,0.1]
[1731252783907,6.13626853,209.66,209.6,0.1]
[1731252784120,13.10686297,209.68,209.6,0.1]
[1731252784446,3.55415687,209.68,209.64,0.1]
[1731252784733,3.55415687,209.68,209.63,4.7702]
[1731252784931,3.55415687,209.68,209.64,0.1]
[1731252785104,15.28324229,209.65,209.64,0.1]
[1731252785636,15.28324229,209.65,209.62,16.7968]
[1731252785807,3.55415687,209.68,209.66,0.1]
[1731252786011,3.55415687,209.68,209.62,16.6968]
[1731252786012,3.55415687,209.68,209.65,0.1]
[1731252786219,3.55415687,209.68,209.62,16.6968]
[1731252786532,3.55415687,209.68,209.64,0.1]
[1731252786729,15.28324229,209.65,209.62,0.1]
[1731252786915,15.28324229,209.63,209.6,0.1]
[1731252787114,15.28324229,209.61,209.6,0.1]
[1731252788413,30.56648458,209.61,209.6,0.1]
[1731252788721,30.56648458,209.61,209.59,4.7711]
[1731252788722,15.28324229,209.61,209.58,0.1]
[1731252788922,15.28324229,209.59,209.55,12.0299]
[1731252789129,15.28324229,209.57,209.55,12.0299]
[1731252789319,15.28324229,209.57,209.53,23.8619]
[1731252789320,15.28324229,209.57,209.53,0.1]
[1731252789630,15.28324229,209.54,209.53,0.1]
[1731252790127,15.28324229,209.54,209.51,4.773]
[1731252790337,15.28324229,209.52,209.51,4.773]
[1731252790528,15.28324229,209.54,209.53,0.1]
[1731252791038,15.28324229,209.54,209.5,0.1]
[1731252791244,15.28324229,209.52,209.5,0.1]
[1731252791530,15.28324229,209.52,209.51,0.1]
[1731252792216,15.28324229,209.52,209.43,21.55554229]
[1731252792217,30.56648458,209.52,209.43,0.1]
[1731252792527,15.28324229,209.45,209.43,16.8117]
[1731252792915,15.28324229,209.46,209.45,0.1]
[1731252793123,15.28324229,209.47,209.46,0.1]